[Event "WYCC U18 Open 2019"]
[Site "Mumbai"]
[Date "2019.10.09"]
[Round "8.7"]
[White "Wang, Shixu B"]
[Black "Pultinevicius, Paulius"]
[Result "0-1"]
[ECO "D85"]
[WhiteElo "2370"]
[BlackElo "2503"]
[Annotator "ChessBase"]
[PlyCount "66"]
[EventDate "2019.10.02"]
[EventType "swiss"]
[EventCountry "IND"]
[SourceTitle "playchess.com"]
[Source "ChessBase"]
[SourceQuality "1"]
[TimeControl "40/5400+30:1800+30"]

1. d4 Nf6 2. c4 g6 3. Nc3 d5 4. cxd5 Nxd5 5. e4 Nxc3 6. bxc3 Bg7 7. Nf3 c5 8. Rb1 cxd4 9. cxd4 O-O 10. Be2 Qa5+ 11. Bd2 Qxa2 12. O-O Bg4 13. Bg5 h6 14. Bh4 g5 15. Bg3 a5 16. Rxb7 Nc6 17. d5 Bxf3 18. Bxf3 Nd4 19. h4 a4 20. hxg5 hxg5 21. Qc1 a3 22. Qxg5 Nxf3+ 23. gxf3 Ra6 24. d6 exd6 25. Qb5 Raa8 26. Bxd6 Rfe8 27. Ra7 Qe6 28. Rxa8 Rxa8 29. Qb7 Ra5 30. Qb8+ Kh7 31. e5 Qg6+ 32. Kh1 Ra4 33. Qd8 a2 0-1

[Event "WYCC U18 Open 2019"]
[Site "Mumbai"]
[Date "2019.10.09"]
[Round "8.8"]
[White "Blohberger, Felix"]
[Black "Aditya Mittal"]
[Result "1/2-1/2"]
[ECO "B33"]
[WhiteElo "2448"]
[BlackElo "2430"]
[Annotator "ChessBase"]
[PlyCount "240"]
[EventDate "2019.10.02"]
[EventType "swiss"]
[EventCountry "IND"]
[SourceTitle "playchess.com"]
[Source "ChessBase"]
[SourceQuality "1"]
[TimeControl "40/5400+30:1800+30"]

1. e4 {[%emt 0:00:00]} c5 {[%emt 0:00:00]} 2. Nf3 {[%emt 0:00:00]} Nc6 {[%emt 0:00:00]} 3. d4 {[%emt 0:00:08]} cxd4 {[%emt 0:00:02]} 4. Nxd4 {[%emt 0:00:06]} Nf6 {[%emt 0:00:06]} 5. Nc3 {[%emt 0:00:04]} e5 {[%emt 0:00:05]} 6. Ndb5 {[%emt 0:00:06]} d6 {[%emt 0:00:07]} 7. Bg5 {[%emt 0:00:30]} a6 {[%emt 0:00:06]} 8. Na3 {[%emt 0:00:05]} b5 {[%emt 0:00:06]} 9. Nd5 {[%emt 0:00:05]} Be7 {[%emt 0:00:05]} 10. Bxf6 {[%emt 0:00:24]} Bxf6 {[%emt 0:00:07]} 11. c3 {[%emt 0:00:12]} Ne7 {[%emt 0:00:06]} 12. Nc2 {[%emt 0:03:32]} Nxd5 {[%emt 0:00:48]} 13. Qxd5 {[%emt 0:00:51]} Rb8 {[%emt 0:00:25]} 14. Qd3 {[%emt 0:07:49]} a5 {[%emt 0:08:34]} 15. Ne3 {[%emt 0:03:37]} Bg5 {[%emt 0:08:19]} 16. Nd5 {[%emt 0:01:11]} O-O {[%emt 0:00:49]} 17. Be2 {[%emt 0:00:18]} f5 {[%emt 0:05:44]} 18. Bf3 {[%emt 0:02:20]} f4 {[%emt 0:02:32]} 19. O-O {[%emt 0:02:17]} g6 {[%emt 0:05:02]} 20. b4 {[%emt 0:06:40]} a4 {[%emt 0:09:02]} 21. c4 {[%emt 0:12:38]} bxc4 {[%emt 0:04:00]} 22. Qxc4 {[%emt 0:00:10]} Be6 {[%emt 0:00:43]} 23. a3 {[%emt 0:14:23]} Qc8 {[%emt 0:17:18]} 24. Rac1 {[%emt 0:06:27]} Qxc4 {[%emt 0:18:06]} 25. Rxc4 {[%emt 0:00:06]} Rfc8 {[%emt 0:00:05]} 26. Rfc1 {[%emt 0:00:12]} Rxc4 {[%emt 0:00:05]} 27. Rxc4 {[%emt 0:00:05]} Bd8 {[%emt 0:00:20]} 28. Rc6 {[%emt 0:13:09]} Kf7 {[%emt 0:03:17]} 29. Kf1 {[%emt 0:03:10]} Bxd5 {[%emt 0:03:32]} 30. exd5 {[%emt 0:00:24]} Ke7 {[%emt 0:00:06]} 31. Be4 {[%emt 0:06:36]} Bb6 {[%emt 0:00:53]} 32. Ke2 {[%emt 0:00:53]} Bd4 {[%emt 0:05:05]} 33. Rc2 {[%emt 0:06:18]} Rb7 {[%emt 0:03:02]} 34. Kd1 {[%emt 0:00:45]} Kd8 {[%emt 0:02:35]} 35. f3 {[%emt 0:02:21]} g5 {[%emt 0:00:48]} 36. Rc6 {[%emt 0:03:30]} Ke7 {[%emt 0:03:06]} 37. Kc1 {[%emt 0:00:58]} h5 {[%emt 0:00:09]} 38. Bg6 {[%emt 0:02:24]} Rb8 {[%emt 0:02:24]} 39. h3 {[%emt 0:02:07]} Rh8 {[%emt 0:00:51]} 40. Rc7+ {[%emt 0:02:30]} Kf6 {[%emt 0:00:24]} 41. Bc2 {[%emt 0:09:22]} g4 {[%emt 0:00:33]} 42. Rd7 {[%emt 0:04:28]} gxh3 {[%emt 0:04:14]} 43. Rxd6+ {[%emt 0:02:53]} Kg5 {[%emt 0:00:33]} 44. gxh3 {[%emt 0:00:07]} Kh4 {[%emt 0:00:10]} 45. Rg6 {[%emt 0:02:45]} Rc8 {[%emt 0:04:43]} 46. d6 {[%emt 0:08:34]} e4 {[%emt 0:01:08]} 47. d7 {[%emt 0:01:19]} Rd8 {[%emt 0:00:28]} 48. Bxa4 {[%emt 0:03:22]} exf3 {[%emt 0:00:35]} 49. Kd1 {[%emt 0:00:28]} Bb2 {[%emt 0:05:26]} 50. Bc6 {[%emt 0:00:06]} Bxa3 {[%emt 0:00:13]} 51. b5 {[%emt 0:00:05]} Bc5 {[%emt 0:00:03]} 52. Ke1 {[%emt 0:00:41]} Kxh3 {[%emt 0:00:23]} 53. Kf1 {[%emt 0:00:42]} f2 {[%emt 0:02:23]} 54. b6 {[%emt 0:01:22]} Bxb6 {[%emt 0:01:30]} 55. Bg2+ {[%emt 0:00:05]} Kh4 {[%emt 0:03:18]} 56. Rxb6 {[%emt 0:00:05]} Rxd7 {[%emt 0:00:02]} 57. Bf3 {[%emt 0:01:56]} Kg3 {[%emt 0:01:51]} 58. Bxh5 {[%emt 0:00:30]} f3 {[%emt 0:00:45]} 59. Rg6+ {[%emt 0:00:09]} Kf4 {[%emt 0:00:06]} 60. Rg8 {[%emt 0:00:42]} Rd1+ {[%emt 0:00:52]} 61. Kxf2 {[%emt 0:00:05]} Rd2+ {[%emt 0:00:02]} 62. Ke1 {[%emt 0:00:27]} Re2+ {[%emt 0:00:45]} 63. Kf1 {[%emt 0:00:07]} Rh2 {[%emt 0:00:40]} 64. Rf8+ {[%emt 0:01:12]} Ke3 {[%emt 0:00:08]} 65. Re8+ {[%emt 0:00:14]} Kf4 {[%emt 0:00:07]} 66. Bf7 {[%emt 0:00:38]} Rh1+ {[%emt 0:02:50]} 67. Kf2 {[%emt 0:00:04]} Rh2+ {[%emt 0:00:02]} 68. Kg1 {[%emt 0:00:14]} Rg2+ {[%emt 0:02:06]} 69. Kf1 {[%emt 0:00:05]} Kg3 {[%emt 0:00:23]} 70. Rg8+ {[%emt 0:00:10]} Kf4 71. Rf8 {[%emt 0:01:08]} Ke3 {[%emt 0:00:44]} 72. Re8+ {[%emt 0:00:29]} Kf4 {[%emt 0:00:08]} 73. Bd5 {[%emt 0:00:07]} Rd2 {[%emt 0:00:06]} 74. Rf8+ {[%emt 0:00:31]} Kg3 {[%emt 0:00:06]} 75. Rg8+ {[%emt 0:00:05]} Kf4 {[%emt 0:00:01]} 76. Rf8+ {[%emt 0:00:06]} Kg3 {[%emt 0:00:04]} 77. Rxf3+ {[%emt 0:00:24]} Kg4 {[%emt 0:00:07]} 78. Bb7 {[%emt 0:00:33]} Rb2 {[%emt 0:00:16]} 79. Rf7 {[%emt 0:00:06]} Kg5 {[%emt 0:00:13]} 80. Bf3 {[%emt 0:00:28]} Kg6 {[%emt 0:00:07]} 81. Ra7 {[%emt 0:00:19]} Kf6 {[%emt 0:00:19]} 82. Be2 {[%emt 0:00:14]} Ke5 {[%emt 0:00:06]} 83. Kf2 {[%emt 0:00:06]} Rb3 {[%emt 0:00:03]} 84. Bf3 {[%emt 0:00:36]} Rb2+ {[%emt 0:00:06]} 85. Kg3 {[%emt 0:00:07]} Rb4 {[%emt 0:00:19]} 86. Ra5+ {[%emt 0:02:00]} Kd6 {[%emt 0:00:01]} 87. Ba8 {[%emt 0:00:43]} Ke6 {[%emt 0:00:08]} 88. Kf3 {[%emt 0:00:10]} Rb1 {[%emt 0:00:28]} 89. Kf4 {[%emt 0:00:18]} Rf1+ {[%emt 0:00:07]} 90. Bf3 {[%emt 0:00:02]} Kd6 {[%emt 0:00:14]} 91. Rd5+ {[%emt 0:00:25]} Ke6 {[%emt 0:00:05]} 92. Rc5 {[%emt 0:00:04]} Kd6 {[%emt 0:00:09]} 93. Rc6+ {[%emt 0:00:06]} Kd7 {[%emt 0:00:04]} 94. Rh6 {[%emt 0:00:27]} Ke7 {[%emt 0:00:17]} 95. Ke4 {[%emt 0:01:27]} Re1+ {[%emt 0:02:55]} 96. Kd5 {[%emt 0:00:22]} Rf1 {[%emt 0:00:45]} 97. Be4 {[%emt 0:01:36]} Rd1+ {[%emt 0:00:30]} 98. Ke5 {[%emt 0:00:07]} Re1 {[%emt 0:00:04]} 99. Rh7+ {[%emt 0:00:04]} Ke8 {[%emt 0:00:05]} 100. Kd5 {[%emt 0:01:13]} Kf8 {[%emt 0:00:34]} 101. Bf5 {[%emt 0:00:13]} Re7 {[%emt 0:00:06]} 102. Rh1 {[%emt 0:00:06]} Kg7 {[%emt 0:02:16]} 103. Be6 {[%emt 0:01:11]} Ra7 {[%emt 0:00:08]} 104. Ke5 {[%emt 0:00:41]} Ra5+ {[%emt 0:00:18]} 105. Bd5 {[%emt 0:00:04]} Kg6 {[%emt 0:00:06]} 106. Rg1+ {[%emt 0:01:27]} Kh5 {[%emt 0:00:05]} 107. Rg8 {[%emt 0:00:47]} Rb5 {[%emt 0:00:12]} 108. Ke6 {[%emt 0:00:27]} Kh4 {[%emt 0:00:08]} 109. Be4 {[%emt 0:00:04]} Rg5 {[%emt 0:00:04]} 110. Ra8 {[%emt 0:00:26]} Kg3 {[%emt 0:01:50]} 111. Rf8 {[%emt 0:01:25]} Ra5 {[%emt 0:01:08]} 112. Bd5 {[%emt 0:00:16]} Kg4 {[%emt 0:00:13]} 113. Ke5 {[%emt 0:00:48]} Kg5 {[%emt 0:00:15]} 114. Rg8+ {[%emt 0:00:05]} Kh5 {[%emt 0:00:10]} 115. Rg1 {[%emt 0:00:27]} Rb5 {[%emt 0:00:06]} 116. Ke4 {[%emt 0:00:08]} Kh6 {[%emt 0:00:06]} 117. Be6 {[%emt 0:01:44]} Rg5 {[%emt 0:00:07]} 118. Ra1 {[%emt 0:00:30]} Kg7 {[%emt 0:00:16]} 119. Ra7+ {[%emt 0:00:47]} Kf6 {[%emt 0:00:16]} 120. Bh3 {[%emt 0:00:44]} Re5+ {[%emt 0:00:25]} 1/2-1/2

[Event "WYCC U18 Open 2019"]
[Site "Mumbai"]
[Date "2019.10.09"]
[Round "8.9"]
[White "Buckels, Valentin"]
[Black "Bykov, Oleg"]
[Result "1/2-1/2"]
[ECO "D02"]
[WhiteElo "2442"]
[BlackElo "2370"]
[Annotator "ChessBase"]
[PlyCount "68"]
[EventDate "2019.10.02"]
[EventType "swiss"]
[EventCountry "IND"]
[SourceTitle "playchess.com"]
[Source "ChessBase"]
[SourceQuality "1"]
[TimeControl "40/5400+30:1800+30"]

1. d4 {[%emt 0:00:00]} Nf6 {[%emt 0:00:00]} 2. Nf3 {[%emt 0:00:00]} d5 {[%emt 0:00:58]} 3. Bf4 {[%emt 0:00:21]} e6 {[%emt 0:04:11]} 4. e3 {[%emt 0:00:12]} Bd6 {[%emt 0:00:43]} 5. Bg3 {[%emt 0:00:33]} O-O {[%emt 0:00:27]} 6. Nbd2 {[%emt 0:00:25]} c5 {[%emt 0:00:44]} 7. c3 {[%emt 0:00:07]} b6 {[%emt 0:01:16]} 8. Bd3 {[%emt 0:01:11]} Ba6 {[%emt 0:06:11]} 9. Bxa6 {[%emt 0:08:56]} Nxa6 {[%emt 0:00:03]} 10. Qe2 {[%emt 0:01:16]} c4 {[%emt 0:06:40]} 11. e4 {[%emt 0:09:24]} Bxg3 {[%emt 0:15:15]} 12. hxg3 {[%emt 0:00:27]} b5 {[%emt 0:00:55]} 13. Ne5 {[%emt 0:08:50]} h6 {[%emt 0:08:47]} 14. g4 {[%emt 0:04:01]} Nxe4 {[%emt 0:04:06]} 15. Nxe4 {[%emt 0:02:59]} dxe4 {[%emt 0:00:04]} 16. a4 {[%emt 0:06:30]} b4 {[%emt 0:05:09]} 17. Qxc4 {[%emt 0:18:06]} bxc3 {[%emt 0:02:03]} 18. bxc3 {[%emt 0:01:19]} Nc7 {[%emt 0:03:13]} 19. g5 {[%emt 0:05:39]} hxg5 {[%emt 0:07:12]} 20. Qe2 {[%emt 0:03:12]} g6 {[%emt 0:01:07]} 21. Qxe4 {[%emt 0:04:17]} Kg7 {[%emt 0:01:10]} 22. Ng4 {[%emt 0:06:22]} Nd5 {[%emt 0:07:02]} 23. Rb1 {[%emt 0:10:57]} Rb8 {[%emt 0:12:38]} 24. O-O {[%emt 0:05:55]} Rxb1 {[%emt 0:06:28]} 25. Rxb1 Nxc3 {[%emt 0:01:09]} 26. Qe5+ {[%emt 0:00:58]} f6 {[%emt 0:00:04]} 27. Rb7+ {[%emt 0:00:49]} Rf7 {[%emt 0:00:01]} 28. Rxf7+ {[%emt 0:00:40]} Kxf7 {[%emt 0:00:02]} 29. Qc5 {[%emt 0:00:25]} Qxd4 {[%emt 0:06:09]} 30. Qc7+ {[%emt 0:00:05]} Ke8 {[%emt 0:00:37]} 31. Qc8+ {[%emt 0:00:13]} Ke7 {[%emt 0:00:25]} 32. Qc7+ {[%emt 0:00:11]} Ke8 {[%emt 0:00:18]} 33. Qc8+ {[%emt 0:00:13]} Ke7 {[%emt 0:00:11]} 34. Qc7+ {[%emt 0:00:04]} Ke8 {[%emt 0:00:28]} 1/2-1/2

[Event "WYCC U18 Open 2019"]
[Site "Mumbai"]
[Date "2019.10.09"]
[Round "8.11"]
[White "Vanczak, Tamas"]
[Black "Gumularz, Szymon"]
[Result "1/2-1/2"]
[ECO "A45"]
[WhiteElo "2327"]
[BlackElo "2505"]
[Annotator "ChessBase"]
[PlyCount "52"]
[EventDate "2019.10.02"]
[EventType "swiss"]
[EventCountry "IND"]
[SourceTitle "playchess.com"]
[Source "ChessBase"]
[SourceQuality "1"]
[TimeControl "40/5400+30:1800+30"]

1. d4 {[%emt 0:00:00]} Nf6 {[%emt 0:00:00]} 2. Bg5 {[%emt 0:00:00]} d5 {[%emt 0:00:00]} 3. Nd2 {[%emt 0:00:33]} c5 {[%emt 0:06:31]} 4. dxc5 {[%emt 0:05:50]} Qa5 {[%emt 0:11:49]} 5. Ngf3 {[%emt 0:05:03]} Ne4 {[%emt 0:00:21]} 6. Bh4 {[%emt 0:01:17]} Nc6 {[%emt 0:03:11]} 7. c3 {[%emt 0:03:24]} Qxc5 {[%emt 0:03:22]} 8. e3 {[%emt 0:01:01]} Nxd2 {[%emt 0:07:10]} 9. Qxd2 {[%emt 0:00:19]} e6 {[%emt 0:00:04]} 10. Bd3 {[%emt 0:03:08]} Be7 {[%emt 0:00:19]} 11. Bg3 {[%emt 0:01:19]} O-O {[%emt 0:00:55]} 12. O-O {[%emt 0:00:22]} Qb6 {[%emt 0:08:29]} 13. Qe2 {[%emt 0:03:18]} Bd7 {[%emt 0:03:04]} 14. Rad1 {[%emt 0:03:53]} Rfd8 {[%emt 0:01:29]} 15. e4 {[%emt 0:03:41]} Be8 {[%emt 0:12:21]} 16. e5 {[%emt 0:13:12]} Rac8 {[%emt 0:00:17]} 17. Bh4 {[%emt 0:04:01]} Bxh4 {[%emt 0:03:12]} 18. Nxh4 {[%emt 0:00:08]} Ne7 {[%emt 0:21:11]} 19. Nf3 {[%emt 0:00:46]} a6 {[%emt 0:00:32]} 20. Rfe1 {[%emt 0:07:59]} Bb5 {[%emt 0:06:20]} 21. Bxb5 {[%emt 0:03:28]} axb5 {[%emt 0:00:43]} 22. a3 {[%emt 0:00:20]} Rc4 {[%emt 0:00:26]} 23. Qe3 {[%emt 0:08:48]} Qxe3 {[%emt 0:03:43]} 24. Rxe3 {[%emt 0:00:34]} Nf5 {[%emt 0:01:44]} 25. Re2 {[%emt 0:05:28]} h5 {[%emt 0:00:28]} 26. Kf1 {[%emt 0:03:32]} Kh7 {[%emt 0:00:11]} 1/2-1/2

[Event "WYCC U18 Open 2019"]
[Site "Mumbai"]
[Date "2019.10.09"]
[Round "8.12"]
[White "Beukema, Jasper"]
[Black "Arjun Kalyan"]
[Result "0-1"]
[ECO "D10"]
[WhiteElo "2265"]
[BlackElo "2483"]
[Annotator "ChessBase"]
[PlyCount "72"]
[EventDate "2019.10.02"]
[EventType "swiss"]
[EventCountry "IND"]
[SourceTitle "playchess.com"]
[Source "ChessBase"]
[SourceQuality "1"]
[TimeControl "40/5400+30:1800+30"]

1. d4 {[%emt 0:00:00]} d5 {[%emt 0:00:00]} 2. c4 {[%emt 0:00:00]} c6 {[%emt 0:00:23]} 3. Nc3 {[%emt 0:00:46]} Nf6 {[%emt 0:00:14]} 4. Bg5 {[%emt 0:00:56]} dxc4 {[%emt 0:06:36]} 5. Nf3 {[%emt 0:07:02]} b5 {[%emt 0:02:41]} 6. a3 {[%emt 0:04:36]} e6 {[%emt 0:04:07]} 7. e4 {[%emt 0:00:29]} Be7 {[%emt 0:01:26]} 8. e5 {[%emt 0:01:58]} Nd5 {[%emt 0:01:20]} 9. Bxe7 {[%emt 0:00:15]} Qxe7 {[%emt 0:07:56]} 10. Ne4 {[%emt 0:01:41]} O-O {[%emt 0:00:06]} 11. h4 {[%emt 0:05:35]} Nd7 {[%emt 0:02:22]} 12. h5 {[%emt 0:03:16]} c5 {[%emt 0:07:10]} 13. h6 {[%emt 0:02:48]} g6 {[%emt 0:02:20]} 14. Nd6 {[%emt 0:01:24]} a6 {[%emt 0:19:36]} 15. a4 {[%emt 0:21:06]} cxd4 {[%emt 0:01:12]} 16. Qxd4 {[%emt 0:06:45]} f6 {[%emt 0:01:06]} 17. Ne4 {[%emt 0:06:09]} fxe5 {[%emt 0:03:54]} 18. Nxe5 {[%emt 0:02:42]} Qb4+ {[%emt 0:02:10]} 19. Kd1 {[%emt 0:00:23]} Qb3+ {[%emt 0:04:55]} 20. Ke1 {[%emt 0:03:39]} Qb4+ {[%emt 0:02:57]} 21. Kd1 {[%emt 0:00:08]} Nxe5 {[%emt 0:00:38]} 22. Qxe5 {[%emt 0:00:30]} Ra7 23. Rh3 {[%emt 0:13:30]} Nf4 {[%emt 0:09:14]} 24. Rf3 {[%emt 0:15:01]} Rd7+ {[%emt 0:00:55]} 25. Kc2 {[%emt 0:00:02]} Bb7 {[%emt 0:01:24]} 26. Nc5 {[%emt 0:00:13]} Qd2+ {[%emt 0:10:31]} 27. Kb1 {[%emt 0:00:06]} Bxf3 {[%emt 0:00:55]} 28. Nxd7 {[%emt 0:00:16]} Qd1+ {[%emt 0:04:15]} 29. Ka2 {[%emt 0:00:01]} Qxa4+ {[%emt 0:00:21]} 30. Kb1 {[%emt 0:00:02]} Qd1+ {[%emt 0:00:02]} 31. Ka2 {[%emt 0:00:09]} Qb3+ {[%emt 0:00:15]} 32. Kb1 {[%emt 0:00:06]} Qd1+ 33. Ka2 {[%emt 0:00:09]} Qxd7 {[%emt 0:00:10]} 34. gxf3 {[%emt 0:00:19]} Nd3 {[%emt 0:00:44]} 35. Bxd3 {[%emt 0:00:27]} cxd3 36. Rd1 {[%emt 0:04:29]} Rxf3 {[%emt 0:03:04]} 0-1

[Event "WYCC U18 Open 2019"]
[Site "Mumbai"]
[Date "2019.10.09"]
[Round "8.13"]
[White "Raghunandan, Kaumandur Srihari"]
[Black "Vatsal Singhania"]
[Result "1-0"]
[ECO "E20"]
[WhiteElo "2449"]
[BlackElo "2157"]
[Annotator "ChessBase"]
[PlyCount "42"]
[EventDate "2019.10.02"]
[EventType "swiss"]
[EventCountry "IND"]
[SourceTitle "playchess.com"]
[Source "ChessBase"]
[SourceQuality "1"]
[TimeControl "40/5400+30:1800+30"]

1. d4 Nf6 2. c4 e6 3. Nc3 Bb4 4. g3 O-O 5. Bg2 d5 6. Nf3 dxc4 7. O-O c5 8. dxc5 Nc6 9. Qa4 Qe7 10. Ne5 Bxc5 11. Nxc6 bxc6 12. Qxc4 Bb7 13. Bg5 Rfd8 14. Rad1 Bb6 15. Ne4 Rxd1 16. Rxd1 Rd8 17. Rd3 Rxd3 18. exd3 Qd8 19. Nc5 Bxc5 20. Qxc5 Qb6 21. Qe7 Qc7 1-0

[Event "WYCC U18 Open 2019"]
[Site "Mumbai"]
[Date "2019.10.09"]
[Round "8.14"]
[White "Manu David Suthandram R"]
[Black "Garidmagnai, Byambasuren"]
[Result "0-1"]
[ECO "C11"]
[WhiteElo "2403"]
[BlackElo "2327"]
[Annotator "ChessBase"]
[PlyCount "114"]
[EventDate "2019.10.02"]
[EventType "swiss"]
[EventCountry "IND"]
[SourceTitle "playchess.com"]
[Source "ChessBase"]
[SourceQuality "1"]
[TimeControl "40/5400+30:1800+30"]

1. e4 {[%emt 0:00:05]} e6 {[%emt 0:00:00]} 2. Nf3 {[%emt 0:00:05]} d5 {[%emt 0:00:00]} 3. Nc3 {[%emt 0:00:08]} Nf6 {[%emt 0:00:00]} 4. e5 {[%emt 0:00:06]} Nfd7 {[%emt 0:00:00]} 5. d4 {[%emt 0:00:05]} c5 {[%emt 0:00:00]} 6. dxc5 {[%emt 0:00:05]} Nc6 {[%emt 0:00:00]} 7. Bf4 {[%emt 0:00:09]} Nxc5 {[%emt 0:00:43]} 8. Bb5 {[%emt 0:01:25]} a6 {[%emt 0:01:27]} 9. Bxc6+ {[%emt 0:00:56]} bxc6 {[%emt 0:00:10]} 10. O-O {[%emt 0:00:09]} Be7 {[%emt 0:00:10]} 11. Nd4 {[%emt 0:01:57]} Bb7 {[%emt 0:00:15]} 12. Qh5 {[%emt 0:00:54]} g6 {[%emt 0:03:51]} 13. Qh6 {[%emt 0:05:47]} Bf8 {[%emt 0:01:01]} 14. Qh3 {[%emt 0:00:57]} Nd7 {[%emt 0:03:27]} 15. Rfe1 {[%emt 0:19:30]} c5 {[%emt 0:02:46]} 16. Nf3 {[%emt 0:01:16]} h6 {[%emt 0:03:04]} 17. Rad1 {[%emt 0:06:02]} Be7 {[%emt 0:05:00]} 18. Qg3 {[%emt 0:18:47]} g5 {[%emt 0:04:40]} 19. Bc1 {[%emt 0:00:15]} Qc7 {[%emt 0:03:24]} 20. Qh3 {[%emt 0:09:26]} O-O-O {[%emt 0:02:04]} 21. Qh5 {[%emt 0:02:11]} Rdf8 {[%emt 0:01:06]} 22. h3 {[%emt 0:02:00]} Bc6 {[%emt 0:01:18]} 23. Nh2 {[%emt 0:05:44]} Nxe5 {[%emt 0:06:00]} 24. Qe2 {[%emt 0:01:13]} Ng6 {[%emt 0:00:38]} 25. Qxa6+ {[%emt 0:00:38]} Qb7 {[%emt 0:00:15]} 26. Qxb7+ {[%emt 0:02:19]} Kxb7 {[%emt 0:00:07]} 27. Ng4 {[%emt 0:04:48]} Ra8 {[%emt 0:02:32]} 28. a3 {[%emt 0:00:42]} Bf8 {[%emt 0:01:40]} 29. Ne2 {[%emt 0:02:41]} Bg7 {[%emt 0:02:27]} 30. f4 {[%emt 0:01:50]} gxf4 {[%emt 0:08:00]} 31. Nxf4 {[%emt 0:00:23]} Nh4 {[%emt 0:01:15]} 32. Ne5 {[%emt 0:03:27]} Bxe5 {[%emt 0:01:00]} 33. Rxe5 {[%emt 0:00:06]} Ra4 {[%emt 0:08:34]} 34. b3 {[%emt 0:03:29]} Rg8 {[%emt 0:00:57]} 35. Re2 {[%emt 0:01:18]} Re4 {[%emt 0:01:33]} 36. Rf2 {[%emt 0:01:39]} d4 {[%emt 0:05:30]} 37. Kh2 {[%emt 0:00:49]} Kb6 {[%emt 0:01:39]} 38. Rg1 {[%emt 0:00:24]} e5 {[%emt 0:13:10]} 39. Nh5 {[%emt 0:01:01]} f5 {[%emt 0:01:05]} 40. Ng3 {[%emt 0:00:16]} Re3 {[%emt 0:04:29]} 41. Bxe3 {[%emt 0:31:34]} dxe3 {[%emt 0:30:42]} 42. Rxf5 {[%emt 0:00:10]} Rxg3 {[%emt 0:00:46]} 43. Rxe5 {[%emt 0:00:03]} Rxg2+ {[%emt 0:09:22]} 44. Rxg2 {[%emt 0:00:06]} Nxg2 {[%emt 0:00:03]} 45. Kg3 {[%emt 0:00:52]} Kc7 {[%emt 0:00:32]} 46. Rxc5 {[%emt 0:03:27]} e2 {[%emt 0:00:08]} 47. Re5 {[%emt 0:01:33]} e1=Q+ {[%emt 0:00:07]} 48. Rxe1 {[%emt 0:00:06]} Nxe1 {[%emt 0:00:05]} 49. c3 {[%emt 0:00:00]} Nc2 {[%emt 0:00:00]} 50. a4 {[%emt 0:00:00]} Na1 {[%emt 0:00:00]} 51. Kg4 {[%emt 0:00:00]} Be8 {[%emt 0:00:00]} 52. b4 {[%emt 0:00:00]} Nc2 {[%emt 0:00:00]} 53. b5 {[%emt 0:00:00]} Ne3+ {[%emt 0:00:00]} 54. Kf3 {[%emt 0:00:00]} Nd5 {[%emt 0:00:00]} 55. c4 {[%emt 0:00:00]} Nb6 {[%emt 0:00:00]} 56. c5 {[%emt 0:00:00]} Nxa4 {[%emt 0:00:00]} 57. c6 {[%emt 0:00:00]} Nc3 {[%emt 0:00:00]} 0-1

[Event "WYCC U18 Open 2019"]
[Site "Mumbai"]
[Date "2019.10.09"]
[Round "8.15"]
[White "Mendonca, Leon Luke"]
[Black "Sibi Visal R"]
[Result "0-1"]
[ECO "E29"]
[WhiteElo "2388"]
[BlackElo "2064"]
[Annotator "ChessBase"]
[PlyCount "124"]
[EventDate "2019.10.02"]
[EventType "swiss"]
[EventCountry "IND"]
[SourceTitle "playchess.com"]
[Source "ChessBase"]
[SourceQuality "1"]
[TimeControl "40/5400+30:1800+30"]

1. d4 {[%emt 0:00:00]} Nf6 {[%emt 0:00:00]} 2. c4 {[%emt 0:00:00]} e6 {[%emt 0:00:00]} 3. Nc3 {[%emt 0:00:00]} Bb4 {[%emt 0:00:00]} 4. e3 {[%emt 0:00:00]} O-O {[%emt 0:00:22]} 5. Bd3 {[%emt 0:00:27]} c5 {[%emt 0:00:12]} 6. a3 {[%emt 0:00:46]} Bxc3+ {[%emt 0:00:14]} 7. bxc3 {[%emt 0:00:02]} Nc6 {[%emt 0:01:02]} 8. Ne2 {[%emt 0:00:06]} d6 {[%emt 0:00:11]} 9. e4 {[%emt 0:21:45]} e5 {[%emt 0:02:50]} 10. O-O {[%emt 0:09:36]} Re8 {[%emt 0:20:25]} 11. d5 {[%emt 0:09:52]} Ne7 {[%emt 0:00:29]} 12. f4 {[%emt 0:08:07]} exf4 {[%emt 0:01:57]} 13. Bxf4 {[%emt 0:01:57]} Ng4 {[%emt 0:01:38]} 14. e5 {[%emt 0:18:02]} dxe5 {[%emt 0:18:26]} 15. Bg5 {[%emt 0:00:47]} h6 {[%emt 0:04:02]} 16. Bc1 {[%emt 0:03:42]} f5 {[%emt 0:03:09]} 17. Ng3 {[%emt 0:08:48]} f4 {[%emt 0:08:32]} 18. Ne4 {[%emt 0:07:49]} Bf5 {[%emt 0:00:54]} 19. g3 {[%emt 0:05:02]} Bxe4 {[%emt 0:01:20]} 20. Bxe4 {[%emt 0:00:11]} Nf6 {[%emt 0:00:02]} 21. Bg2 {[%emt 0:00:44]} fxg3 {[%emt 0:00:16]} 22. Bxh6 {[%emt 0:00:58]} gxh2+ {[%emt 0:00:49]} 23. Kh1 {[%emt 0:00:00]} Qd6 {[%emt 0:01:00]} 24. Bg5 {[%emt 0:01:13]} Nh7 {[%emt 0:00:59]} 25. Be3 {[%emt 0:00:33]} Rf8 {[%emt 0:03:37]} 26. Qh5 {[%emt 0:00:12]} Rxf1+ {[%emt 0:01:32]} 27. Rxf1 {[%emt 0:00:01]} Rf8 {[%emt 0:01:16]} 28. Rxf8+ {[%emt 0:00:03]} Nxf8 {[%emt 0:00:04]} 29. Bg5 {[%emt 0:03:05]} Nf5 {[%emt 0:05:45]} 30. Qg4 {[%emt 0:00:35]} Nh6 {[%emt 0:02:17]} 31. Qc8 {[%emt 0:00:34]} b6 {[%emt 0:06:43]} 32. Qe8 {[%emt 0:00:27]} Qd7 {[%emt 0:05:09]} 33. Qxe5 {[%emt 0:00:30]} Nf7 {[%emt 0:00:08]} 34. Qg3 {[%emt 0:00:30]} Nxg5 {[%emt 0:03:49]} 35. Qxg5 {[%emt 0:00:01]} Qd6 {[%emt 0:00:47]} 36. Bh3 {[%emt 0:00:12]} g6 {[%emt 0:01:08]} 37. Qe3 {[%emt 0:01:17]} Kg7 {[%emt 0:00:23]} 38. Bg4 {[%emt 0:00:31]} Nh7 {[%emt 0:01:15]} 39. Be6 {[%emt 0:00:30]} Nf6 {[%emt 0:00:46]} 40. Kg2 {[%emt 0:00:33]} Nh5 {[%emt 0:00:40]} 41. Qe1 {[%emt 0:13:47]} Qg3+ {[%emt 0:04:44]} 42. Qxg3 {[%emt 0:00:02]} Nxg3 {[%emt 0:00:02]} 43. Kxh2 {[%emt 0:00:08]} Ne4 {[%emt 0:00:04]} 44. Kg2 {[%emt 0:01:06]} Nd6 {[%emt 0:00:58]} 45. Kf3 {[%emt 0:00:58]} Kf6 {[%emt 0:00:07]} 46. Ke3 {[%emt 0:01:13]} Nxc4+ {[%emt 0:01:06]} 47. Kd3 {[%emt 0:00:04]} b5 {[%emt 0:00:52]} 48. a4 {[%emt 0:02:11]} Nb2+ {[%emt 0:01:45]} 49. Kc2 {[%emt 0:00:53]} Nxa4 {[%emt 0:00:02]} 50. Bd7 {[%emt 0:00:07]} Nb6 {[%emt 0:00:07]} 51. Bxb5 {[%emt 0:00:04]} Nxd5 {[%emt 0:00:02]} 52. Kd3 {[%emt 0:00:13]} Ke5 {[%emt 0:00:06]} 53. Kc4 {[%emt 0:01:05]} Kd6 {[%emt 0:00:07]} 54. Ba6 {[%emt 0:00:12]} g5 {[%emt 0:00:20]} 55. Bb7 {[%emt 0:00:01]} Nf6 {[%emt 0:02:20]} 56. Kb5 {[%emt 0:00:25]} g4 {[%emt 0:00:26]} 57. c4 {[%emt 0:00:04]} Nd7 {[%emt 0:00:37]} 58. Ka6 {[%emt 0:00:47]} Ne5 {[%emt 0:00:04]} 59. Kb5 {[%emt 0:00:05]} g3 {[%emt 0:00:02]} 60. Be4 {[%emt 0:00:21]} a6+ {[%emt 0:00:16]} 61. Kxa6 {[%emt 0:00:05]} Nxc4 {[%emt 0:00:01]} 62. Kb5 {[%emt 0:00:16]} Ne3 {[%emt 0:00:01]} 0-1